Cogmind - Beta 16 @@@ ROGUE MODE // 2026.01.01 @ 15:55:43 Player: IEP Result: Destroyed by G-47 Trooper with Particle Gun Performance ------------- Evolutions (2) 1000 Regions Visited (3) 600 Robots Destroyed (18) 90 Value Destroyed (420) 420 Prototype IDs (0) 0 Alien Tech Used (0) 0 Bonus (0) 0 TOTAL SCORE: 2110 Bonus ------- None Cogmind --------- Core Integrity 0/550 Matter 152/300 Energy 85/140 System Corruption 8% Temperature Warm (184) Movement Core (400) Ox7 Location -8/Materials Parts ------- > --- POWER (1) -------- Light Deuterium Engine > --- PROPULSION (4) --- (None) > --- UTILITY (4) ------ Medium Storage Unit Subdweller Optics > --- WEAPON (2) ------- Small Laser Ion Cannon > --- INVENTORY (10) --- Subdweller Power Source Subdweller Power Source Subdweller Power Source Peak State ------------ > --- POWER ------------ Light Nuclear Core > --- PROPULSION ------- Aluminum Leg Aluminum Leg > --- UTILITY ---------- Disposable Heat Sink Medium Storage Unit Subdweller Optics Seismic Detector > --- WEAPON ----------- Subdweller Machine Gun High-powered Shotgun > --- INVENTORY -------- Ion Engine Light Ion Engine Subdweller Power Source Subdweller Power Source Subdweller Power Source Subdweller Optics Small Laser [Rating: 17] Favorites ----------- Power Light Nuclear Core Engine Subdweller Power Source Power Core Light Nuclear Core Propulsion Aluminum Leg Leg Aluminum Leg Utility Medium Storage Unit Device Disposable Heat Sink Storage Medium Storage Unit Weapon Subdweller Machine Gun Energy Gun Heavy Riot Gun Energy Cannon Ion Cannon Ballistic Gun Subdweller Machine Gun Ballistic Cannon Flak Cannon Special Weapon Mining Laser Build | -11 -10 -10 -8 ------- Run | Yrd Mat Sub Mat Slots Evolved 4 | . . . 4 Power . | . . . . Propulsion 2 | . . . 2 Utility 2 | . . . 2 Weapon . | . . . . Parts Attached 30 | 6 3 12 9 Power 6 | 1 1 2 2 Engine 4 | 1 . 2 1 Core 2 | . 1 . 1 Reactor . | . . . . Propulsion 7 | 2 . 5 . Treads . | . . . . Leg 7 | 2 . 5 . Wheel . | . . . . Hover . | . . . . Flight . | . . . . Utility 7 | 1 2 1 3 Device 5 | . 1 1 3 Storage 2 | 1 1 . . Processor . | . . . . Hackware . | . . . . Protection . | . . . . Artifact . | . . . . Weapon 10 | 2 . 4 4 Energy Gun 3 | 1 . 2 . Energy Cannon 1 | . . . 1 Ballistic Gun 4 | 1 . 2 1 Ballistic Cannon 1 | . . . 1 Launcher . | . . . . Special Weapon 1 | . . . 1 Impact Weapon . | . . . . Slashing Weapon . | . . . . Piercing Weapon . | . . . . Special Melee Weapon . | . . . . Unidentified Prototypes . | . . . . Parts Lost 18 | . . 8 10 Power 3 | . . 2 1 Propulsion 5 | . . 3 2 Utility 4 | . . 1 3 Weapon 6 | . . 2 4 Highest Loss Streak 8 | . . 5 8 To Critical Strikes . | . . . . Average Backups 7 | 2 8 8 7 Power 3 | . 2 2 4 Propulsion 2 | 1 4 3 . Utility 1 | . . 1 1 Weapon 1 | . 1 . 1 Tool/Special . | . . . . Unused Backups 5 | . 4 . 1 Power 2 | . 1 . 1 Propulsion 3 | . 3 . . Utility . | . . . . Weapon . | . . . . Tool/Special . | . . . . Average Slot Usage (%) 89 | . 98 99 72 Engine 6 | . 10 7 3 Core 5 | . 4 5 5 Leg 23 | . 28 28 16 Device 15 | . 12 13 20 Storage 12 | . 14 14 9 Energy Gun 11 | . 14 16 3 Ballistic Gun 9 | . 14 10 7 Special Weapon 1 | . . . 4 Peak Build Rating 17 | 6 10 14 17 Average Rating 12 | 4 7 12 14 On Entrance 6 | . 6 9 11 Avg Prop Armor Cover (%) . | . . . . Naked Turns . | . . . . Heaviest Build 26 | 12 21 25 26 Greatest Support 20 | 20 20 20 20 Greatest Overweight (x) 3 | 3 1 1 2 Average Overweight (x) . | . . . 1 Largest Inventory Capacity 10 | 8 10 10 10 Average Capacity 9 | 7 9 10 10 Most Carried 10 | 6 10 10 10 Average Carried 8 | 2 8 9 7 Final Capacity 10 | 8 10 10 10 Final Carried 9 | 6 9 9 3 Class Distribution -------------------- 88% | Mutant 11% | Scavenger-Mutant Dominant Class ---------------- Mutant | -10/Materials Mutant | -10/Subcaves Mutant | -8/Materials Resources | -11 -10 -10 -8 ----------- Run | Yrd Mat Sub Mat Matter Collected 480 | 269 75 122 14 Remotely . | . . . . Salvage Created 640 | 100 207 292 41 Parts 44 | 2 20 19 3 Haulers Intercepted . | . . . . Recyclers Shooed . | . . . . Parts Field Recycled . | . . . . Retrieved Matter . | . . . . Parts Self-Destructed 5 | . . 5 . Prevented . | . . . . Parts Restored . | . . . . Kills | -11 -10 -10 -8 ------- Run | Yrd Mat Sub Mat Combat Hostiles Destroyed 14 | . 5 8 1 Guns 14 | . 5 8 1 Classes Destroyed 8 | 1 5 1 1 Builder 1 | . 1 . . Tunneler 1 | . 1 . . Recycler 1 | 1 . . . Watcher 1 | . 1 . . Swarmer 6 | . 3 3 . Grunt 2 | . 2 . . Sentry 1 | . . . 1 Subdweller 5 | . . 5 . Best Kill Streak 4 | 1 4 3 1 Combat Bots Only 3 | . 3 3 1 Max Kills in Single Turn 2 | 1 2 2 1 Gunslinging 1 | . 1 1 . Exploded . | . . . . Melee . | . . . . Uniques/NPCs Destroyed . | . . . . Combat | -11 -10 -10 -8 -------- Run | Yrd Mat Sub Mat Hostile Shots Fired 188 | . 31 69 88 Missed 57 | . 12 17 28 Hits 131 | . 19 52 60 Projectile 131 | . 19 52 60 Critical Strikes 5 | . . 2 3 Damage Taken 2791 | . 218 919 1654 Core 783 | . 39 194 550 Absorbed by Shields . | . . . . Core Remaining (%) 53 | 100 . 6 . Volleys Fired 83 | 3 15 20 45 Largest 2 | 2 2 2 2 Hottest 100 | 60 60 100 100 Shots Fired 128 | 5 30 40 53 Gun 83 | 5 30 40 8 Cannon 13 | . . . 13 Launcher . | . . . . Special 32 | . . . 32 Kinetic 51 | 3 15 17 16 Thermal 45 | . . 8 37 Explosive . | . . . . Electromagnetic 32 | 2 15 15 . Robot Hit Streak 6 | 4 4 6 5 Robot Miss Streak 7 | . 3 7 4 Penetration Max . | . . . . Secondary Targets 5 | . 2 3 . Max Gunslinging Chain 1 | . 1 1 . Shots Hit Robots 68 | 4 16 31 17 Core Hits 38 | 2 11 12 13 Critical Kills . | . . . . Critical Parts Destroyed . | . . . . Critical Strikes . | . . . . Melee Attacks . | . . . . Impact . | . . . . Slashing . | . . . . Piercing . | . . . . Sneak Attacks . | . . . . Combat Hostiles . | . . . . Follow-up Attacks . | . . . . Damage Inflicted 1117 | 55 271 488 303 Guns 834 | 55 210 488 81 Cannons 222 | . . . 222 Explosions 61 | . 61 . . Melee . | . . . . Ramming . | . . . . Kinetic 602 | 28 119 220 235 Thermal 204 | . 61 75 68 Explosive . | . . . . Electromagnetic 311 | 27 91 193 . Impact . | . . . . Slashing . | . . . . Piercing . | . . . . Highest Corruption 8 | . . . 8 Average Corruption 6 | . . . 6 Corruption Purged . | . . . . Corruption Blocked . | . . . . Effects 6 | . . . 6 Message Errors 2 | . . . 2 Heat Flow Errors 1 | . . . 1 Parts Fused 1 | . . . 1 Data Loss (minor) 2 | . . . 2 Overload Shots . | . . . . Overflow Damage . | . . . . Projectiles . | . . . . Explosions . | . . . . Melee . | . . . . Knockbacks 9 | . . . 9 Impact . | . . . . Kinetic 8 | . . . 8 Secondary 1 | . . . 1 Self-Inflicted Damage 33 | . 33 . . Shots 1 | . 1 . . Rammed . | . . . . Targets Rammed . | . . . . Kicked . | . . . . Crushed . | . . . . Highest Temperature 253 | . 63 . 253 Average Temperature 30 | . 33 . 29 Received Heat Transfer 498 | . 51 96 351 Siege Activations . | . . . . Martial Activations . | . . . . Shielding Activations . | . . . . Robots Disrupted . | . . . . Combat Hostiles . | . . . . Robots Corrupted . | . . . . Combat Hostiles . | . . . . Parts Fried . | . . . . Impact Corruptions . | . . . . Robots Melted . | . . . . Combat Hostiles . | . . . . Parts Melted . | . . . . Heat Transferred 386 | . 100 175 111 Parts Sabotaged . | . . . . Parts Stolen . | . . . . Parts Stripped . | . . . . Power Chain Reactions 1 | . 1 . . Alert | -11 -10 -10 -8 ------- Run | Yrd Mat Sub Mat Maximum Alert Level . | . . . . Low Security (%) 100 | 100 100 . 100 Level 1 . | . . . . Level 2 . | . . . . Level 3 . | . . . . Level 4 . | . . . . Level 5 . | . . . . High Security . | . . . . Max Security . | . . . . Peak Influence 111 | 5 111 . 38 Initial . | . . . . Average 10 | 1 28 . 4 Influence Increases 275 | 5 141 70 59 Destroy 0b10 Robot/C 180 | . 100 60 20 Destroy 0b10 Robot/NC 20 | 5 15 . . Destroy Leader 42 | . 22 10 10 Destroy Structure 18 | . 4 . 14 Partial Spotted 15 | . . . 15 Influence Decreases 275 | 5 50 161 59 Entered New Map 44 | . . 44 . Time Decay 219 | 5 50 117 47 Lost Part 12 | . . . 12 Squads Dispatched 1 | . . . 1 Investigation . | . . . . Extermination . | . . . . Reinforcement 1 | . . . 1 Assault . | . . . . Garrison . | . . . . Intercept . | . . . . Searches Triggered . | . . . . Construction Impeded 1 | . . . 1 Haulers Reinforced . | . . . . Active Scanning Responses . | . . . . Cargo Convoy Interrupts . | . . . . Stealth | -11 -10 -10 -8 --------- Run | Yrd Mat Sub Mat Distress Signals 1 | . . . 1 Communications Jammed . | . . . . Distress Signals . | . . . . Times Spotted 25 | . 7 11 7 Peak Tracking Total 6 | . 3 3 6 Tactical Retreats 1 | . 1 . . ECM-based Alert Blocks 1 | . 1 . . Traps | -11 -10 -10 -8 ------- Run | Yrd Mat Sub Mat Traps Triggered 2 | . . 2 . Indirectly . | . . . . Trap Hack Attempts . | . . . . Triggered . | . . . . Disarmed . | . . . . Reprogrammed . | . . . . Reused . | . . . . Traps Extracted . | . . . . Installed . | . . . . Triggered . | . . . . Machines | -11 -10 -10 -8 ---------- Run | Yrd Mat Sub Mat Machines Disabled . | . . . . Max in Single Turn . | . . . . Machines Repaired . | . . . . Machines Dismantled . | . . . . Machines Sabotaged . | . . . . Overloaded Fab Kills . | . . . . Hacking | -11 -10 -10 -8 --------- Run | Yrd Mat Sub Mat Machines Accessed 3 | . 1 . 2 Terminals 3 | . 1 . 2 Fabricators . | . . . . Repair Stations . | . . . . Recycling Units . | . . . . Scanalyzers . | . . . . Garrison Access . | . . . . Total Hacks 6 | . 2 . 4 Successful 3 | . 2 . 1 Failed 3 | . . . 3 Catastrophic . | . . . . Database Lockouts . | . . . . Manual . | . . . . Terminals 6 | . 2 . 4 Fabricators . | . . . . Repair Stations . | . . . . Recycling Units . | . . . . Scanalyzers . | . . . . Garrison Access . | . . . . Terminal Hacks 3 | . 2 . 1 Emergency Access Points 1 | . 1 . . Surveillance Status 1 | . . . 1 Zone Layout 1 | . 1 . . Fabricator Hacks . | . . . . Repair Station Hacks . | . . . . Recycling Unit Hacks . | . . . . Scanalyzer . | . . . . Garrison Access Hacks . | . . . . Unauthorized Hacks . | . . . . Terminals . | . . . . Fabricators . | . . . . Repair Stations . | . . . . Recycling Units . | . . . . Scanalyzers . | . . . . Garrison Access . | . . . . Data Cores Recovered . | . . . . Used . | . . . . Hacking Detections 1 | . . . 1 Full Trace Events . | . . . . Feedback Events . | . . . . Feedback Blocked . | . . . . Robot Schematics Acquired . | . . . . Robots Built . | . . . . Authchips . | . . . . Time . | . . . . Total Robot Build Rating . | . . . . Part Schematics Acquired . | . . . . Parts Built . | . . . . Authchips . | . . . . Time . | . . . . Total Part Build Rating . | . . . . Part Studies Acquired . | . . . . Parts Repaired . | . . . . Time . | . . . . Parts Recycled . | . . . . Recycled Matter . | . . . . Retrieved Matter . | . . . . Retrieved Components . | . . . . Parts Scanalyzed . | . . . . Part Schematics Acquired . | . . . . Parts Damaged . | . . . . Bothacking | -11 -10 -10 -8 ------------ Run | Yrd Mat Sub Mat Used RIF Installer . | . . . . Robots Hacked . | . . . . Non-combat . | . . . . Combat . | . . . . Robot Hacks Applied . | . . . . Relay Couplers Released . | . . . . Fabnet Peak Effective % . | . . . . Robots Rewired . | . . . . Allies Hacked . | . . . . Hacks Repelled . | . . . . Allies | -11 -10 -10 -8 -------- Run | Yrd Mat Sub Mat Total Allies . | . . . . Largest Group . | . . . . Highest-Rated Group . | . . . . Highest-Rated Ally . | . . . . Total Orders . | . . . . Ally Attacks . | . . . . Total Damage . | . . . . Kills . | . . . . Allies Corrupted . | . . . . Allies Melted . | . . . . Intel | -11 -10 -10 -8 ------- Run | Yrd Mat Sub Mat Active Infowar (turns) 1086 | . 195 341 550 Optics 550 | . . . 550 Seismic 367 | . . . 367 ECM 536 | . 195 341 . Robot Analysis Total . | . . . . Derelict Logs Recovered 1 | . . 1 . Drone Launches . | . . . . Drone Recoveries . | . . . . Exploration | -11 -10 -10 -8 ------------- Run | Yrd Mat Sub Mat Turns Passed 1676 | 69 206 835 566 Spaces Moved 721 | 37 108 389 187 Core 7 | 7 . . . Treads . | . . . . Legs 714 | 30 108 389 187 Wheels . | . . . . Hover . | . . . . Flight . | . . . . Fastest Speed 50 | 50 120 120 190 Average Speed 178 | 117 136 189 192 Slowest Speed 260 | 200 190 190 260 Overloaded Moves . | . . . . Propulsion Burnouts . | . . . . Robots Hopped . | . . . . Potential Cave-ins 16 | . . 1 15 Cave-ins Triggered 2 | . . . 2 Exploration Rate (%) 17 | 4 22 28 14 Regions Visited 3 Branch Regions 1 Pre-discovered Areas . | . . . . Known Exits Taken . | . . . . Unknown Exits Taken 3 | 1 1 1 . Scrap Searched . | . . . . Spaces Dug 31 | . . . 31 Terrain Destroyed 35 | . 3 1 31 Melee . | . . . . Projectile 32 | . . 1 31 AOE 3 | . 3 . . Terrain Rammed . | . . . . Walls Destroyed . | . . . . Machines Disabled . | . . . . Actions | -11 -10 -10 -8 --------- Run | Yrd Mat Sub Mat Total 915 | 57 139 443 276 Wait 28 | . . 7 21 Move 718 | 36 107 388 187 Hop . | . . . . Pick Up 39 | 12 9 12 6 Fast Attach . | . . . . Attach 24 | 6 2 8 8 Detach . | . . . . Swap 10 | . 1 4 5 Drop 13 | . 5 4 4 Fire 83 | 3 15 20 45 Melee . | . . . . Ram . | . . . . Kick . | . . . . Crush . | . . . . Escape Stasis . | . . . . Rewire . | . . . . Trap . | . . . . Miscellaneous . | . . . . Route ------- -11/Scrapyard -10/Materials (discovered 2 exits: [*Min] / [*Sub]) -10/Subcaves -8/Materials History --------- Turn | Location | Event 19 | -11/Scrapyard | Discovered new exit (range 16) 70 | -11/Scrapyard | Entered Materials 196 | -10/Materials | Discovered new exit (range 11) 257 | -10/Materials | Discovered new exit (range 7) 276 | -10/Materials | Entered Subcaves 277 | -10/Subcaves | Approached by a straggling Scientist 310 | -10/Subcaves | Build established: Mutant 340 | -10/Subcaves | Shifting Twisted Machinery released Hvy. Riot Gun 342 | -10/Subcaves | Shifting Twisted Machinery released Sub. Power Source 966 | -10/Subcaves | Core integrity fell below 50% 1000 | -10/Subcaves | Learned 4 Materials zone layouts 1023 | -10/Subcaves | Ambushed by Subdweller buried in earth 1023 | -10/Subcaves | Ambushed by Subdweller buried in earth 1029 | -10/Subcaves | Ambushed by Subdweller buried in earth 1041 | -10/Subcaves | Core integrity fell below 20% 1086 | -10/Subcaves | Lost 5 parts (1p3n1w) 1100 | -10/Subcaves | Discovered new exit (range 7) 1111 | -10/Subcaves | Entered Materials 1111 | -8/Materials | Evolved 4 slots: Propulsion x2, Utility x2 1479 | -8/Materials | Crushed by falling debris 1652 | -8/Materials | Crushed by falling debris 1652 | -8/Materials | Core integrity fell below 50% 1671 | -8/Materials | Core integrity fell below 20% 1677 | -8/Materials | Destroyed by G-47 Trooper with Particle Gun Last Messages --------------- 01654_ K-01 Serf collects debris. 01655_ H-55 Commando knocked back. 01656_ Terminal disabled. 01657_ Slug penetrates Wall. 01657_ Critical hit (Burn: +37). 01657_ H-55 Commando knocked back. 01658_ K-01 Serf collects debris. 01658_ Critical hit (Burn: +37). 01661_ System corrupted: Flak Cannon fused. 01661_ K-01 Serf collects debris. 01661_ H-55 Commando knocked back. 01663_ Flak Cannon destroyed. 01664_ K-01 Serf collects debris. 01666_ Penetrated by Slug. 01668_ K-01 Serf collects debris. 01669_ Slug penetrates Wall. 01669_ Sub. Machine Gun destroyed. 01672_ K-01 Serf collects debris. 01675_ Slug penetrates Wall. 01676_ K-01 Serf collects debris. Map ----- +----------------------------------------------------+ | ??????????? # ## S"" # #?????? | | ??????????? # ## "" # #?????? | | ??????????? # ######## #?????? | | ??????????? # # ####### | | ??????????? # # | | ??????????? # # | | ??????????? ######/#### """ """ """ | | ??????????? """"""""" """ " | | ??????????? w """"" """ | | ??????????? ?????????????? | | ??????????? ?????????????? | | ??????????? ?????????????? | | ??????????? ?????????????? | | ??????????? k ?????????????? | | ??????????? ########????? ?????? | | ??????????? #???????????? ?????? | | ??????????? #??#####????# ?????? | | ??????????? #??# ????# ?????? | | ??????????? k#??# ????# ?????? | | ??????????? #??# ????# ?????? | | ???????????############## #??# ????# ?????? | | ???????????#???????????## #??# ????+ ?????? | | ???????????#??????????###ggg#??# ????# ?????? | | ???????????#?????????#### #??# ????# #????? | | ???????????#?????????# ##! #??# ????# #????? | | ???????????#????????## ##@| #??# ????# #????? | | ???????????#???????######* #??#####????# #????? | | ??????????????????## #### ########????# #????? | | ??????????????????# ##?## k### ????# #????? | | ???????????###????###???# ### """"????# #????? | | ??????????? #???####???#h ## ""T"????+ #????? | | ??????????? #####"###### ### ????# #????? | | ??????????? ## # ### ????# #????? | | ??????????? ## #[ ########### #????? | | ??????????????# # ###??? | | ??????????????# +% " #??? | | ??????????????# *# # #??? | | ??????????????# # ] #################??? | | ??????????????# ## ## " ##???? | | ??????????????# ## ## ###????? | | ??????????????############ ## """"" #??????? | | ????????????????########## ## """"" #??????? | | ????????????????# ! # ## """"" #??????? | | ????????????????# T # ## ######## | | ????????????????# ** #a #######+####### | | ????????????????+ """ # # | | ????????????????# """"" + # | | ????????????????# """"" # # | | ????????????????# """"" ###########+### + """ " | | ????????????????# """ # " # # """ " | +----------------------------------------------------+ Best States ------------- Heat Dissipation 31 Coolant Potential 50 Energy Generation 15 Energy Capacity 200 Matter Stores 300 Matter Capacity 300 Sight Range 21 Terrain Scan Density 10 ECM Strength 1 Evasion (%) 55 Item Schematics ----------------- None Robot Schematics ------------------ None Fabricated ------------ Nothing Repaired ---------- Nothing Studied --------- None Alien Tech Used ----------------- None Achievements -------------- Bumper Bots Do Not Disturb Challenges ------------ None Game ------ Seed ChipBehemothOptics Manual? 0 Play Time 00:20:28 Cumulative 37.3 hours Start 2026.01.01 @ 15:33:01 End 2026.01.01 @ 15:55:43 Sessions 1 Manual Loads 0 Difficulty Rogue Special Mode None Game No. 63 Rogue 63 Adventurer 0 Explorer 0 Win Type - Total 0 Types 0/0/0/0/0/0/0/0/0/0 Lore% 23 Gallery% 28 Achievement% 14 Wizard Run 0 Options --------- Layout 0 ASCII 0 Keyboard 0 Movement Mouse Keybinds 0 Fullscreen 2 Font 24/Smallcaps Map View 76x50 Zoom Use 0% Tactical HUD 1 Map Filters NONE Filters NONE Steam 1 RUN: e428e403-933c-494e-8a45-7996c9db0e0c